bitfinex/quotes_BTCUSD_20241206
["timestamp","ask_amount","ask_price","bid_price","bid_amount"]
[1733492081362,0.203053,98497.0,98496.0,0.05]
[1733492081840,0.203047,98500.0,98499.0,0.073]
[1733492082064,0.202999,98523.0,98513.0,0.05]
[1733492082275,0.6565,98543.0,98532.0,0.023]
[1733492082276,0.01587898,98540.0,98532.0,0.023]
[1733492082691,0.202968,98538.0,98532.0,0.023]
[1733492083111,0.405936,98538.0,98532.0,0.023]
[1733492083333,0.405936,98538.0,98531.0,0.05]
[1733492083334,0.202979,98532.0,98531.0,0.073]
[1733492085367,0.00310589,98541.0,98531.0,0.073]
[1733492085578,0.202963,98540.0,98535.0,0.023]
[1733492086020,0.405927,98540.0,98535.0,0.023]
[1733492086518,0.00017322,98543.0,98538.0,0.073]
[1733492086748,0.00017322,98543.0,98542.0,0.023]
[1733492086963,0.00017322,98543.0,98538.0,0.05]
[1733492087181,0.00017322,98543.0,98541.0,0.073]
[1733492087182,0.202959,98542.0,98541.0,0.073]
[1733492087409,0.00017322,98543.0,98542.0,0.073]
[1733492087624,0.00017322,98543.0,98542.0,0.123]
[1733492088253,0.00017322,98543.0,98542.0,0.22803154]
[1733492089149,0.202868,98586.0,98568.0,0.073]
[1733492089354,0.5065,98584.0,98574.0,0.05]
[1733492089559,0.5065,98584.0,98575.0,0.023]
[1733492089769,0.709372,98584.0,98575.0,0.023]
[1733492089982,0.5065,98584.0,98583.0,0.1]
[1733492090204,0.02004767,98591.0,98584.0,0.023]
[1733492090415,0.202868,98586.0,98583.0,0.0983]
[1733492090652,0.202854,98593.0,98586.0,0.073]
[1733492090874,2.00017334,98587.0,98586.0,0.05]
[1733492091091,2.00017334,98587.0,98586.0,0.123]
[1733492091303,2.00017334,98587.0,98586.0,0.22803154]
[1733492092372,2.00017334,98587.0,98586.0,0.17803154]
[1733492092641,2.00017334,98587.0,98586.0,0.22803154]
[1733492093710,1.95017334,98587.0,98586.0,0.25903644]
[1733492094203,1.95017334,98587.0,98586.0,0.22803154]
[1733492096178,1.86017334,98587.0,98586.0,0.1]
[1733492097495,1.86017334,98587.0,98586.0,0.123]
[1733492098610,1.86017334,98587.0,98585.0,0.05]
[1733492098819,1.86017334,98587.0,98586.0,0.05]
[1733492099054,1.86017334,98587.0,98575.0,0.05]
[1733492099261,0.202891,98575.0,98569.0,0.05]
[1733492099479,0.202901,98570.0,98569.0,0.1]
[1733492099711,1.86017334,98587.0,98574.0,0.1]
[1733492099982,1.86017334,98587.0,98586.0,0.1]
[1733492100239,1.86017334,98587.0,98586.0,0.20503154]
[1733492100493,1.86017334,98587.0,98586.0,0.1]
[1733492100724,1.86021334,98587.0,98586.0,0.123]
[1733492101145,1.86021334,98587.0,98586.0,0.31053154]
[1733492101608,1.86021334,98587.0,98586.0,0.1825]
[1733492101825,1.86021334,98587.0,98586.0,0.2055]
[1733492103161,1.86021334,98587.0,98584.0,0.05]
[1733492103374,1.86021334,98587.0,98586.0,0.05]
[1733492103596,0.202885,98578.0,98577.0,0.05]
[1733492103831,0.202885,98578.0,98575.0,0.05]
[1733492104056,0.202885,98578.0,98553.0,0.0778]
[1733492104057,0.40577,98578.0,98576.0,0.05]
[1733492104268,0.40577,98578.0,98553.0,0.0778]
[1733492104269,0.40577,98578.0,98575.0,0.05]
[1733492104475,0.202903,98569.0,98568.0,0.05]
[1733492104710,0.202903,98569.0,98568.0,0.1]
[1733492104926,0.202922,98560.0,98559.0,0.1]
[1733492105160,0.202922,98560.0,98557.0,0.05]
[1733492105396,0.405844,98560.0,98557.0,0.05]
[1733492105816,0.405844,98560.0,98556.0,0.05]
[1733492105817,0.405844,98560.0,98559.0,0.05]
[1733492106032,0.01587213,98573.0,98572.0,0.05]
[1733492106242,1.86327041,98587.0,98577.0,0.05]
[1733492106243,0.202879,98581.0,98577.0,0.05]
[1733492106460,0.01587023,98584.0,98577.0,0.05]
[1733492106967,0.01587023,98584.0,98570.0,0.05]
[1733492107185,0.01587023,98584.0,98553.0,0.0778]
[1733492107186,0.202876,98582.0,98557.0,0.05]
[1733492107389,0.20293,98556.0,98550.0,0.05]
[1733492107597,0.20293,98556.0,98547.0,0.05]
[1733492107598,0.202946,98548.0,98547.0,0.05]
[1733492107823,0.202946,98548.0,98547.0,0.1]
[1733492108071,0.202959,98542.0,98537.0,0.05]
[1733492108287,0.202963,98540.0,98537.0,0.05]
[1733492108520,0.202963,98540.0,98537.0,0.1]
[1733492108738,0.405926,98540.0,98537.0,0.05]
[1733492108963,0.405926,98540.0,98537.0,0.05057852]
[1733492109444,0.202963,98540.0,98538.0,0.05]
[1733492109658,0.01587475,98547.0,98546.0,0.05]
[1733492109895,0.20295,98546.0,98545.0,0.1]
[1733492110352,0.10503154,98561.0,98537.0,0.00057852]
[1733492110353,0.0791,98592.0,98557.0,0.05]
[1733492110594,0.202903,98569.0,98566.0,0.05]
[1733492111101,0.10814718,98568.0,98538.0,0.05]
[1733492111319,0.202965,98539.0,98537.0,0.00057852]
[1733492111547,0.202996,98524.0,98523.0,0.05]
[1733492111757,0.202965,98539.0,98526.0,0.1]
[1733492111997,0.202967,98538.0,98535.0,0.05]
[1733492112206,0.10503154,98537.0,98519.0,0.05]
[1733492112430,0.203016,98514.0,98513.0,0.1]
[1733492112854,0.0005777,98539.0,98495.0,0.203054]
[1733492112855,0.202985,98530.0,98528.0,0.05]
[1733492113059,0.202985,98530.0,98529.0,0.05]
[1733492113304,0.40597,98530.0,98529.0,0.05]
[1733492113523,0.203,98522.0,98521.0,0.05]
[1733492113742,0.202967,98538.0,98519.0,0.05]
[1733492113961,0.0005777,98539.0,98521.0,0.05]
[1733492113962,0.203,98522.0,98521.0,0.05]
[1733492114193,0.406,98522.0,98521.0,0.05]
[1733492114411,0.406,98522.0,98519.0,0.05]
[1733492115895,0.202975,98534.0,98533.0,0.05]
[1733492116113,0.0005777,98539.0,98537.0,0.05]
[1733492116114,0.202968,98538.0,98537.0,0.05]
[1733492116564,0.0005777,98539.0,98538.0,0.073]
[1733492116783,0.0005777,98539.0,98538.0,0.123]
[1733492117008,0.0005777,98539.0,98529.0,0.05]
[1733492117339,0.20298,98532.0,98531.0,0.05]
[1733492117549,0.0005777,98539.0,98538.0,0.05]
[1733492117755,0.0005777,98539.0,98538.0,0.1]
[1733492118633,0.0005777,98539.0,98538.0,0.05]
[1733492118837,0.0005777,98539.0,98538.0,0.1]
[1733492119858,0.0005777,98539.0,98538.0,0.123]
[1733492120068,0.0005777,98539.0,98538.0,0.22904632]
[1733492120278,0.0005777,98539.0,98538.0,0.22803154]
[1733492120496,0.0005777,98539.0,98538.0,0.27803154]
[1733492120706,0.00300188,98578.0,98577.0,0.302887]
[1733492120911,0.0008656,98590.0,98586.0,0.05]
[1733492121118,0.0008656,98590.0,98586.0,0.1]
[1733492121331,0.0008656,98590.0,98586.0,0.123]
[1733492121538,1.86021334,98587.0,98586.0,0.123]
[1733492122365,1.86021334,98587.0,98586.0,0.22803154]
[1733492123226,1.86021334,98587.0,98586.0,0.123]
[1733492123434,1.86021334,98587.0,98582.0,0.05]
[1733492123649,1.86021334,98587.0,98575.0,0.05]
[1733492123650,0.202893,98574.0,98573.0,0.05]
[1733492124289,0.202893,98574.0,98570.0,0.05]
[1733492124534,0.202893,98574.0,98573.0,0.05]
[1733492124766,0.202908,98567.0,98566.0,0.05]
[1733492125183,0.20292,98561.0,98556.0,0.05]
[1733492125383,0.20292,98561.0,98557.0,0.05]
[1733492125584,0.20292,98561.0,98560.0,0.05]
[1733492125797,0.202914,98564.0,98557.0,0.05]
[1733492126005,0.202928,98557.0,98551.0,0.05]
[1733492126209,0.202939,98552.0,98551.0,0.05]
[1733492126439,0.202928,98557.0,98551.0,0.05]
[1733492126655,0.27518983,98600.0,98569.0,0.05]
[1733492126861,0.27518983,98600.0,98565.0,0.05]
[1733492126862,0.202885,98578.0,98565.0,0.05]
[1733492127067,1.60503154,98577.0,98547.0,0.05]
[1733492127273,1.60503154,98577.0,98545.0,0.05]
[1733492127274,0.202924,98559.0,98558.0,0.05]
[1733492127494,0.00303105,98574.0,98557.0,0.05]
[1733492127697,0.00303105,98574.0,98565.0,0.05]
[1733492127698,0.10806259,98574.0,98565.0,0.05]
[1733492127922,0.10806259,98574.0,98567.0,0.05]
[1733492128131,0.202912,98565.0,98560.0,0.05]
[1733492128339,0.202912,98565.0,98529.0,0.202983]
[1733492128340,0.10503154,98564.0,98546.0,0.05]
[1733492128546,0.10503154,98564.0,98539.0,0.05]
[1733492128547,0.202955,98544.0,98539.0,0.05]
[1733492128781,0.202921,98561.0,98557.0,0.05]
[1733492128988,0.12090464,98564.0,98528.0,0.202986]
[1733492128989,0.10503154,98560.0,98540.0,0.05]
[1733492129192,0.10503154,98560.0,98550.0,0.05]
[1733492129193,0.202941,98551.0,98550.0,0.05]
[1733492129399,0.10503154,98560.0,98540.0,0.05]
[1733492129605,0.202961,98541.0,98536.0,0.05]
[1733492129815,0.405922,98541.0,98540.0,0.05]
[1733492130026,0.10503154,98560.0,98535.0,0.05]
[1733492130027,0.202972,98536.0,98535.0,0.05]
[1733492130261,0.37931877,98560.0,98535.0,0.0005777]
[1733492130262,0.202965,98539.0,98535.0,0.0005777]
[1733492130496,0.202969,98537.0,98535.0,0.0005777]
[1733492130741,0.10503154,98536.0,98535.0,0.0005777]
[1733492131858,0.202969,98537.0,98535.0,0.0005777]
[1733492132709,0.20294,98551.0,98538.0,0.05]
[1733492132941,0.20294,98551.0,98535.0,0.0005777]
[1733492132942,0.02065362,98554.0,98551.0,0.05]
[1733492133157,0.202933,98555.0,98552.0,0.05]
[1733492133373,0.51089854,98555.0,98552.0,0.05]
[1733492133593,0.202951,98546.0,98544.0,0.05]
[1733492133817,0.202951,98546.0,98545.0,0.05]
[1733492134018,0.202951,98546.0,98545.0,0.0558646]
[1733492134229,0.30796454,98555.0,98545.0,0.0558646]
[1733492134436,0.202934,98554.0,98551.0,0.05]
[1733492134877,0.202936,98553.0,98541.0,0.05]
[1733492135087,0.20295,98547.0,98544.0,0.05]
[1733492135548,0.20295,98547.0,98536.0,0.202971]
[1733492135549,0.27428723,98580.0,98551.0,0.05]
[1733492135766,0.27428723,98580.0,98557.0,0.05]
[1733492135767,0.6815,98572.0,98557.0,0.05]
[1733492135978,0.6815,98572.0,98537.0,0.00101476]
[1733492135979,0.00304432,98581.0,98571.0,0.05]
[1733492136273,0.202872,98584.0,98580.0,0.05]
[1733492136517,1.86004,98587.0,98586.0,0.05]
[1733492137005,1.86004,98587.0,98586.0,0.1]
[1733492137491,1.86021334,98587.0,98586.0,0.1]
[1733492137991,1.86021334,98587.0,98586.0,0.05]
[1733492138465,2.06307934,98587.0,98586.0,0.05]
[1733492138688,1.86021334,98587.0,98586.0,0.05]
[1733492139688,0.202868,98586.0,98584.0,0.05]
[1733492139948,0.30790154,98585.0,98566.0,0.05]
[1733492140207,0.202903,98569.0,98568.0,0.05]
[1733492140506,0.202899,98571.0,98568.0,0.05]
[1733492140738,0.202899,98571.0,98557.0,0.05]
[1733492140739,0.202917,98562.0,98557.0,0.05]
[1733492140949,0.202917,98562.0,98532.0,0.202979]
[1733492140950,0.10503154,98561.0,98542.0,0.05]
[1733492141159,0.10503154,98561.0,98548.0,0.05]
[1733492141363,0.202924,98559.0,98552.0,0.05]
[1733492141572,0.197976,98553.0,98552.0,0.05]
[1733492141777,0.400912,98553.0,98552.0,0.05]
[1733492141987,0.30795754,98558.0,98538.0,0.202967]
[1733492141988,0.5065,98562.0,98557.0,0.05]
[1733492142194,0.5065,98562.0,98524.0,0.05]
[1733492142195,0.202934,98554.0,98545.0,0.05]
[1733492142404,0.10503154,98561.0,98512.0,0.05]
[1733492142405,0.202942,98550.0,98549.0,0.05]
[1733492143053,0.20294,98551.0,98549.0,0.05]
[1733492143258,0.202942,98550.0,98549.0,0.05]
[1733492143472,0.202956,98544.0,98543.0,0.05]
[1733492143675,0.202953,98545.0,98542.0,0.05]
[1733492143676,0.202953,98545.0,98544.0,0.05]
[1733492144800,0.202938,98552.0,98549.0,0.05]
[1733492145024,0.202938,98552.0,98551.0,0.05]
[1733492145246,0.202937,98553.0,98551.0,0.05]
[1733492146106,0.202938,98552.0,98551.0,0.05]
[1733492146341,0.202952,98545.0,98544.0,0.05]
[1733492146793,0.51093654,98545.0,98542.0,0.00017322]
[1733492147054,0.202957,98543.0,98542.0,0.00017322]
[1733492147269,0.30798854,98543.0,98542.0,0.00017322]
[1733492147935,0.202942,98551.0,98542.0,0.00017322]
[1733492148140,0.50949442,98562.0,98550.0,0.05]
[1733492148348,0.202924,98559.0,98542.0,0.00017322]
[1733492148552,0.202957,98543.0,98542.0,0.05017322]
[1733492148753,0.30798854,98543.0,98542.0,0.00017322]
[1733492149794,0.37937719,98543.0,98542.0,0.00017322]
[1733492151337,1.80798854,98543.0,98542.0,0.00017322]
[1733492151752,1.82809474,98543.0,98542.0,0.00017322]
[1733492152381,0.30798854,98543.0,98542.0,0.00017322]
[1733492152589,0.56048854,98543.0,98542.0,0.00017322]
[1733492152788,0.56345878,98543.0,98542.0,0.00017322]
[1733492154960,0.20592724,98543.0,98542.0,0.00017322]
[1733492155406,0.20592724,98543.0,98542.0,0.05017322]
[1733492155407,0.00297024,98543.0,98542.0,0.05017322]
[1733492157321,0.10800178,98543.0,98542.0,0.00017322]
[1733492157521,0.10800178,98543.0,98542.0,0.05017322]
[1733492157647,0.10800178,98543.0,98542.0,0.00017322]
[1733492157854,0.10800178,98543.0,98542.0,0.05017322]
[1733492158258,0.10800178,98543.0,98542.0,0.00017322]
[1733492159431,0.00297024,98543.0,98542.0,0.00017322]
[1733492159574,0.0008657,98550.0,98542.0,0.00017322]
[1733492159784,0.0008657,98550.0,98549.0,0.325944]
[1733492160289,0.0008657,98550.0,98549.0,0.33118994]
[1733492160494,0.0008657,98550.0,98549.0,0.12824594]
[1733492161152,0.0008657,98550.0,98549.0,0.07824594]
[1733492161376,0.0008657,98550.0,98549.0,0.00524594]
[1733492161583,0.10589724,98550.0,98549.0,0.00524594]
[1733492161803,0.10589724,98550.0,98547.0,0.05]
[1733492161804,0.405888,98549.0,98547.0,0.05]
[1733492162072,0.405888,98549.0,98542.0,0.00017322]
[1733492162073,0.202948,98547.0,98542.0,0.00017322]
[1733492162272,0.202953,98545.0,98544.0,0.05]
[1733492163167,0.202953,98545.0,98542.0,0.00017322]
[1733492163168,0.0008657,98550.0,98545.0,0.05]
[1733492163341,0.0008657,98550.0,98549.0,0.05]
[1733492163558,0.0008657,98550.0,98549.0,0.123]
[1733492163770,0.0008657,98550.0,98549.0,0.12822901]
[1733492163980,0.0008657,98550.0,98549.0,0.28067527]
[1733492164181,0.0008657,98550.0,98549.0,0.35676055]
[1733492164753,0.0008657,98550.0,98549.0,0.35628567]
[1733492165934,0.0008657,98550.0,98549.0,0.25125413]
[1733492166541,0.0008657,98550.0,98549.0,0.12775413]
[1733492166891,0.0008657,98550.0,98549.0,0.23278567]
[1733492168950,0.0008657,98550.0,98549.0,0.28278567]
[1733492169148,0.0008656,98590.0,98549.0,0.28278567]
[1733492169149,0.0008656,98590.0,98559.0,0.35244912]
[1733492169436,6e-07,98560.0,98559.0,0.57728066]
[1733492169610,0.0008656,98590.0,98585.0,0.32539512]
[1733492170048,0.0008656,98590.0,98585.0,0.33061971]
[1733492170940,0.00227263,98586.0,98585.0,0.33061971]
[1733492171653,0.00227263,98586.0,98585.0,0.12774971]
[1733492171851,0.00227263,98586.0,98584.0,0.04952512]
[1733492172084,0.202884,98579.0,98577.0,0.04952512]
[1733492172290,0.202884,98579.0,98557.0,0.202926]
[1733492172291,0.202887,98577.0,98566.0,0.05]
[1733492172526,1.60503154,98578.0,98566.0,0.05]
[1733492172728,0.00227263,98586.0,98550.0,0.0797]
[1733492172729,0.00227263,98586.0,98581.0,0.04952512]
[1733492172931,0.00227263,98586.0,98550.0,0.0797]
[1733492172932,0.202872,98584.0,98567.0,0.09952512]
[1733492173135,0.10503154,98584.0,98581.0,0.04952512]
[1733492173346,0.202876,98582.0,98581.0,0.04952512]
[1733492174030,0.10503154,98584.0,98581.0,0.04952512]
[1733492174239,0.00227263,98586.0,98581.0,0.09952512]
[1733492174480,0.00227263,98586.0,98585.0,0.04952512]
[1733492175280,0.10730417,98586.0,98577.0,0.04952512]
[1733492175549,0.10503154,98585.0,98573.0,0.04952512]
[1733492175808,0.10503154,98585.0,98584.0,0.04952512]
[1733492176745,0.00227263,98586.0,98584.0,0.04952512]
[1733492177002,0.00227263,98586.0,98585.0,0.04952512]
[1733492177949,0.00227263,98586.0,98585.0,0.04452512]
[1733492178185,0.00227263,98586.0,98585.0,0.04972672]
[1733492178447,0.00227263,98586.0,98585.0,0.07272672]
[1733492178965,0.00227263,98586.0,98585.0,0.04972672]
[1733492179460,0.00227263,98586.0,98585.0,0.25525826]
[1733492179689,0.00227263,98586.0,98585.0,0.30525826]
[1733492180418,0.00227263,98586.0,98585.0,0.31530686]
[1733492181615,1.86004,98587.0,98586.0,0.32039312]
[1733492181842,1.86004,98587.0,98586.0,0.42542466]
[1733492182070,1.86004,98587.0,98586.0,0.43062294]
[1733492182793,1.552405,98587.0,98586.0,0.58062294]
[1733492183014,1.25953552,98587.0,98586.0,0.58062294]
[1733492183242,1.15306508,98587.0,98586.0,0.58062294]
[1733492183478,1.15306508,98587.0,98586.0,0.60057329]
[1733492183988,1.15306508,98587.0,98586.0,0.62062294]
[1733492184495,1.15306508,98587.0,98586.0,0.59762294]
[1733492184987,1.05163008,98587.0,98586.0,0.59762294]
[1733492185484,0.95019508,98587.0,98586.0,0.59762294]
[1733492185958,0.95019508,98587.0,98586.0,0.62062294]
[1733492186435,0.38230948,98587.0,98586.0,0.62062294]
[1733492186719,0.34173548,98587.0,98586.0,0.62062294]
[1733492187175,0.33607464,98587.0,98586.0,0.62062294]
[1733492187418,0.26948517,98587.0,98586.0,0.62062294]
[1733492187654,0.22891317,98587.0,98586.0,0.62062294]
[1733492188381,0.20862717,98587.0,98586.0,0.62062294]
[1733492188655,0.18834117,98587.0,98586.0,0.62062294]
[1733492188881,0.14776917,98587.0,98586.0,0.62062294]
[1733492189326,0.12748217,98587.0,98586.0,0.62062294]
[1733492189545,0.00484599,98587.0,98586.0,0.59762294]
[1733492190510,5.9e-07,98590.0,98589.0,0.09452512]
[1733492190745,5.9e-07,98590.0,98589.0,0.20057065]
[1733492190982,5.9e-07,98590.0,98589.0,0.37730299]
[1733492191240,0.0009026,98600.0,98599.0,0.29736612]
[1733492191480,0.0009026,98600.0,98599.0,0.52539766]
[1733492191733,0.0009026,98600.0,98599.0,0.58014348]
[1733492191975,0.0009026,98600.0,98599.0,0.53014348]
[1733492192190,0.0009026,98600.0,98599.0,0.38014348]
[1733492192839,0.0009026,98600.0,98599.0,0.43014348]
[1733492193486,0.0009026,98600.0,98599.0,0.58014348]
[1733492193702,6e-07,98600.0,98599.0,0.58014348]
[1733492194126,6e-07,98600.0,98599.0,0.43014348]
[1733492194338,6e-07,98600.0,98599.0,0.38014348]
[1733492194962,6e-07,98600.0,98599.0,0.35714348]
[1733492195607,6e-07,98600.0,98599.0,0.31261836]
[1733492195817,0.0815006,98600.0,98599.0,0.25211194]
[1733492196031,0.0815006,98600.0,98599.0,0.04927094]
[1733492196258,0.1306006,98600.0,98599.0,0.04927094]
[1733492196470,0.1306006,98600.0,98599.0,0.04452512]
[1733492197169,0.1314657,98600.0,98599.0,0.04452512]
[1733492197388,0.1314657,98600.0,98599.0,0.09452512]
[1733492198082,0.1314657,98600.0,98599.0,0.09928097]
[1733492199189,0.1314657,98600.0,98599.0,0.30212197]
[1733492199622,0.1314657,98600.0,98599.0,0.09928097]
[1733492200768,0.1314657,98600.0,98599.0,0.20431251]
[1733492203648,0.0009024,98640.0,98639.0,0.67531566]
[1733492203865,0.0009024,98640.0,98639.0,0.68007113]
[1733492204279,4e-07,98640.0,98639.0,0.68007113]
[1733492204708,3.6e-07,98640.0,98639.0,0.68007113]
[1733492205153,3.6e-07,98640.0,98639.0,0.63007113]
[1733492205361,3.6e-07,98640.0,98639.0,0.48007113]
[1733492205568,0.000865,98690.0,98668.0,0.04452512]
[1733492205776,0.07717331,98670.0,98669.0,0.09452512]
[1733492206215,0.07717331,98670.0,98669.0,0.30195983]
[1733492206826,0.07717331,98670.0,98669.0,0.09926283]
[1733492208596,0.07717331,98670.0,98669.0,0.30195983]
[1733492208827,0.07717331,98670.0,98669.0,0.09926283]
[1733492209070,0.07717331,98670.0,98669.0,0.00473771]
[1733492209309,0.405394,98669.0,98664.0,0.05]
[1733492209554,0.07717331,98670.0,98656.0,0.05]
[1733492209797,0.07717331,98670.0,98655.0,0.05]
[1733492209798,0.20272,98658.0,98655.0,0.05]
[1733492210005,0.202712,98662.0,98657.0,0.00473865]
[1733492210270,0.202712,98662.0,98651.0,0.04452512]
[1733492210271,0.202715,98661.0,98659.0,0.04452512]
[1733492210485,0.202711,98663.0,98656.0,0.00473877]
[1733492210713,0.07717331,98670.0,98658.0,0.05]
[1733492210714,0.202718,98659.0,98658.0,0.05]
[1733492210947,0.01803283,98660.0,98659.0,0.02718637]
[1733492211185,0.01803283,98660.0,98659.0,0.07171149]
[1733492211409,0.01803283,98660.0,98659.0,0.04926838]
[1733492211629,0.01803283,98660.0,98659.0,0.07645475]
[1733492211630,0.04356291,98660.0,98659.0,0.07645475]
[1733492211870,0.02972852,98660.0,98659.0,0.07171149]
[1733492212115,0.02972852,98660.0,98659.0,0.18148629]
[1733492212362,0.02972852,98660.0,98659.0,0.20448629]
[1733492212577,0.02253117,98660.0,98659.0,0.20448629]
[1733492213036,0.01803283,98660.0,98659.0,0.20448629]
[1733492213476,0.01803283,98660.0,98659.0,0.18148629]
[1733492213896,0.02252147,98660.0,98659.0,0.20448629]
[1733492214133,0.01803283,98660.0,98659.0,0.20448629]
[1733492215517,0.01803283,98660.0,98659.0,0.18148629]
[1733492215721,0.01803283,98660.0,98659.0,0.18249975]
[1733492216172,0.01803283,98660.0,98659.0,0.25549975]
[1733492216387,0.01803283,98660.0,98659.0,0.45448629]
[1733492216388,0.00708417,98660.0,98659.0,0.45448629]
[1733492216826,0.00017331,98670.0,98659.0,0.45448629]
[1733492216827,0.00017331,98670.0,98669.0,0.49740849]
[1733492217041,0.00017331,98670.0,98669.0,0.60244003]
[1733492217258,0.00017331,98670.0,98669.0,0.60715505]
[1733492217492,0.00017331,98670.0,98669.0,0.65715505]
[1733492217950,0.00017331,98670.0,98669.0,0.6894763]
[1733492218167,0.00017331,98670.0,98669.0,0.72037347]
[1733492219265,0.00017331,98670.0,98669.0,0.65715505]
[1733492219489,0.00017331,98670.0,98669.0,0.6894763]
[1733492219691,0.00017331,98670.0,98669.0,0.72037347]
[1733492220154,0.0008644,98670.0,98669.0,0.66709415]
[1733492221963,0.0008644,98670.0,98669.0,0.07642651]
[1733492222176,0.0483644,98670.0,98669.0,0.07642651]
[1733492223293,0.0483644,98670.0,98669.0,0.00471502]
[1733492223523,0.484994,98669.0,98664.0,0.02718637]
[1733492223744,0.20272,98659.0,98650.0,0.04452512]
[1733492223994,0.202728,98655.0,98649.0,0.04452512]
[1733492224219,0.30773054,98668.0,98651.0,0.00515719]
[1733492224465,0.30773054,98668.0,98646.0,0.02718637]
[1733492224466,0.1265,98651.0,98650.0,0.00515786]
[1733492224680,0.1265,98651.0,98646.0,0.02718637]
[1733492224896,0.1265,98651.0,98648.0,0.02718637]
[1733492225333,0.1265,98651.0,98649.0,0.005158]
[1733492225545,0.329236,98651.0,98649.0,0.005158]
[1733492225769,0.329236,98651.0,98648.0,0.02718637]
[1733492226234,0.329236,98651.0,98646.0,0.02718637]
[1733492226235,0.202738,98650.0,98646.0,0.02718637]
[1733492226469,0.1265,98651.0,98634.0,0.00101374]
[1733492226470,0.1265,98651.0,98634.0,0.04452512]
[1733492226707,0.1265,98651.0,98617.0,0.202802]
[1733492226708,0.202754,98642.0,98639.0,0.02718637]
[1733492227164,0.1265,98651.0,98645.0,0.02718637]
[1733492227382,0.1265,98651.0,98648.0,0.02718637]
[1733492227863,0.202736,98650.0,98649.0,0.00490038]
[1733492228117,0.202736,98650.0,98648.0,0.02718637]
[1733492228592,0.1265,98651.0,98648.0,0.02718637]
[1733492228797,0.202736,98650.0,98648.0,0.02718637]
[1733492229007,0.202736,98650.0,98649.0,0.00490038]
[1733492229435,0.1265,98651.0,98650.0,0.02678637]
[1733492229682,0.1265,98651.0,98648.0,0.07131149]
[1733492229898,0.1265,98651.0,98616.0,0.05]
[1733492229899,0.1265,98651.0,98650.0,0.07621173]
[1733492230114,0.0008644,98670.0,98661.0,0.04452512]
[1733492230115,0.1317,98669.0,98661.0,0.04452512]
[1733492230347,0.1317,98669.0,98668.0,0.07131149]
[1733492230776,0.1317,98669.0,98668.0,0.07620908]
[1733492231669,0.1317,98669.0,98668.0,0.27890808]
[1733492232089,0.1317,98669.0,98668.0,0.07620908]
[1733492233391,0.1317,98669.0,98668.0,0.00489759]
[1733492233625,0.13596249,98669.0,98657.0,0.02678637]
[1733492233837,0.20272,98658.0,98657.0,0.02678637]
[1733492234515,0.202731,98653.0,98650.0,0.0017288]
[1733492234734,0.202731,98653.0,98651.0,0.02678637]
[1733492235182,0.20272,98658.0,98651.0,0.02678637]
[1733492235405,0.1317,98669.0,98650.0,0.0017288]
[1733492235406,0.1317,98669.0,98661.0,0.02678637]
[1733492235641,0.1317,98669.0,98668.0,0.07131149]
[1733492235853,0.1317,98669.0,98666.0,0.00178637]
[1733492235854,0.334399,98669.0,98666.0,0.00178637]
[1733492236066,0.1317,98669.0,98668.0,0.00178637]
[1733492236555,0.1317,98669.0,98668.0,0.04631149]
[1733492236759,0.1317,98669.0,98668.0,0.17434303]
[1733492236975,0.1317,98669.0,98668.0,0.00178637]
[1733492237189,0.1317,98669.0,98661.0,0.04452512]
[1733492237410,0.11668,98669.0,98661.0,0.00178637]
[1733492237621,0.11668,98669.0,98661.0,0.04631149]
[1733492238054,0.11668,98669.0,98668.0,0.04631149]
[1733492238700,0.11668,98669.0,98668.0,0.04452512]
[1733492238922,0.11668,98669.0,98668.0,0.04631149]
[1733492239134,0.0008644,98670.0,98669.0,0.24900849]
[1733492239554,0.0008644,98670.0,98669.0,0.37704003]
[1733492240675,0.1,98676.0,98675.0,0.24721012]
[1733492240887,0.1,98676.0,98675.0,0.37524166]
[1733492241314,0.1,98676.0,98675.0,0.37978754]
[1733492241537,0.1,98676.0,98675.0,0.38157391]
[1733492242170,0.1,98676.0,98675.0,0.00633225]
[1733492242387,0.1,98676.0,98675.0,0.05085737]
[1733492242848,0.1,98676.0,98675.0,0.00454588]
[1733492243058,0.1784,98676.0,98675.0,0.00454588]
[1733492243308,0.1784,98676.0,98667.0,0.00178637]
[1733492243522,0.225,98676.0,98667.0,0.00178637]
[1733492243964,0.2251228,98676.0,98667.0,0.00178637]
[1733492244654,0.0008644,98670.0,98665.0,0.00178637]
[1733492245132,0.0008644,98670.0,98666.0,0.00454949]
[1733492245606,0.0008644,98670.0,98665.0,0.20449137]
[1733492245832,0.0008644,98670.0,98669.0,0.04631149]
[1733492246068,0.0008644,98670.0,98669.0,0.15134303]
[1733492246299,0.0008644,98670.0,98669.0,0.15589476]
[1733492247338,0.0008644,98670.0,98669.0,0.17990816]
[1733492248525,0.0008644,98670.0,98669.0,0.22990816]
[1733492248760,0.0008644,98670.0,98669.0,0.17889476]
[1733492249716,0.0008644,98670.0,98669.0,0.17990811]
[1733492251328,0.0008644,98670.0,98669.0,0.05086322]
[1733492253661,0.0008644,98670.0,98669.0,0.0063381]
[1733492254122,0.0008644,98670.0,98669.0,0.05086322]
[1733492255258,0.0008644,98670.0,98669.0,0.00455173]
[1733492255756,0.0008644,98670.0,98669.0,0.00440849]
[1733492256445,0.0008644,98670.0,98667.0,0.00178637]
[1733492256921,0.0008644,98670.0,98668.0,0.004417]
[1733492257420,0.0008644,98670.0,98665.0,0.202705]
[1733492257421,0.0008644,98670.0,98669.0,0.24900849]
[1733492257647,0.0008644,98670.0,98669.0,0.25342534]
[1733492259749,0.13083516,98670.0,98669.0,0.00441685]
[1733492259970,0.1265644,98670.0,98669.0,0.00441685]
[1733492260184,0.13083505,98670.0,98665.0,0.00178637]
[1733492260399,0.00427065,98669.0,98665.0,0.00178637]
[1733492260641,0.00427065,98668.0,98667.0,0.00178637]
[1733492260871,0.00427065,98668.0,98665.0,0.00178637]
[1733492261088,0.00427065,98667.0,98665.0,0.00178637]
[1733492261301,0.00427065,98666.0,98665.0,0.00178637]